bitfinex/quotes_SOLUSD_20250718
["timestamp","ask_amount","ask_price","bid_price","bid_amount"]
[1752835194487,12.30521277,178.51,178.5,0.65]
[1752835194663,12.30521277,178.52,178.51,0.65]
[1752835194864,12.30521277,178.53,178.51,0.65]
[1752835195266,5.60035842,178.56,178.52,0.65]
[1752835195581,12.30521277,178.55,178.52,0.65]
[1752835195781,17.90557119,178.56,178.53,16.78468397]
[1752835195989,17.90531694,178.57,178.54,0.65]
[1752835196291,12.30521277,178.56,178.52,26.0]
[1752835196473,12.30521277,178.56,178.55,0.65]
[1752835196668,17.90531694,178.57,178.55,0.65]
[1752835196994,12.30521277,178.56,178.55,0.65]
[1752835197180,12.30521277,178.56,178.53,17.43468397]
[1752835197384,12.30521277,178.55,178.54,0.65]
[1752835197889,12.30521277,178.56,178.54,0.65]
[1752835198062,12.30521277,178.56,178.53,16.78468397]
[1752835198266,12.30521277,178.56,178.55,0.65]
[1752835198511,17.90531694,178.57,178.55,0.65]
[1752835198891,17.90531694,178.57,178.56,0.65]
[1752835199693,5.60010417,178.57,178.56,0.65]
[1752835199989,17.90531694,178.57,178.56,0.65]
[1752835201888,5.60010417,178.57,178.56,0.65]
[1752835202595,17.90493607,178.59,178.56,0.65]
[1752835203080,12.30521277,178.61,178.57,16.78468397]
[1752835203266,12.30521277,178.61,178.58,0.65]
[1752835203590,12.30521277,178.61,178.57,16.78468397]
[1752835203591,12.30521277,178.61,178.59,0.65]
[1752835203892,17.90431691,178.6,178.59,0.65]
[1752835204398,17.90431691,178.6,178.53,33.54]
[1752835204567,12.30521277,178.58,178.55,0.65]
[1752835204973,12.30521277,178.59,178.55,0.65]
[1752835205482,12.30521277,178.59,178.56,0.65]
[1752835205690,12.30521277,178.58,178.56,0.65]
[1752835206080,5.6000448,178.57,178.56,0.65]
[1752835206290,5.6000448,178.57,178.53,16.78468397]
[1752835206486,5.6000448,178.57,178.56,0.65]
[1752835207092,12.30521277,178.6,178.56,0.65]
[1752835207397,12.30521277,178.58,178.56,0.65]
[1752835208378,5.6000448,178.57,178.56,0.65]
[1752835208800,5.6000448,178.57,178.54,0.65]
[1752835208976,5.59910414,178.6,178.56,29.08989674]
[1752835209183,5.5988837,178.61,178.58,12.30521277]
[1752835209375,5.5988837,178.61,178.59,0.65]
[1752835209569,5.5988837,178.61,178.6,0.65]
[1752835210291,19.5927041,178.64,178.6,0.65]
[1752835210903,20.2627041,178.64,178.58,0.65]
[1752835211104,12.30521277,178.61,178.58,0.65]
[1752835211294,12.30521277,178.63,178.58,12.95521277]
[1752835211590,12.30521277,178.63,178.59,0.65]
[1752835211892,12.30521277,178.61,178.57,0.65]
[1752835212193,12.30521277,178.6,178.57,0.65]
[1752835212392,12.30521277,178.61,178.58,0.65]
[1752835212592,5.59919118,178.6,178.58,0.65]
[1752835212971,5.5981638,178.63,178.59,0.65]
[1752835213174,12.30521277,178.62,178.6,0.65]
[1752835213512,5.5981638,178.63,178.6,0.65]
[1752835213692,5.5981638,178.63,178.61,0.65]
[1752835213893,5.59794015,178.64,178.62,0.65]
[1752835214190,5.59794015,178.64,178.63,0.65]
[1752835214596,5.65759705,178.65,178.63,0.65]
[1752835214777,0.06,178.65,178.64,29.08989674]
[1752835214968,0.06,178.65,178.64,29.73989674]
[1752835215173,0.06,178.65,178.64,46.11468397]
[1752835216793,0.06,178.65,178.64,58.41989674]
[1752835217003,0.06,178.65,178.64,103.73614716]
[1752835217304,0.06,178.65,178.64,129.73614716]
[1752835217504,0.06,178.65,178.64,103.73614716]
[1752835218997,0.06,178.65,178.64,104.2959322]
[1752835221298,0.06,178.65,178.64,98.69808178]
[1752835221684,0.06,178.65,178.64,98.13829674]
[1752835222085,0.06,178.65,178.64,85.83308397]
[1752835222286,0.06,178.65,178.64,98.13829674]
[1752835222988,0.06,178.65,178.64,104.2959322]
[1752835224997,0.06,178.65,178.64,99.6764181]
[1752835226808,0.06,178.67,178.64,246.0764181]
[1752835226988,0.06,178.67,178.66,84.01038264]
[1752835227192,0.06,178.67,178.66,259.61010501]
[1752835227400,0.06,178.67,178.66,259.77038264]
[1752835227915,0.06,178.67,178.66,265.36760641]
[1752835228698,0.06,178.67,178.66,236.72760641]
[1752835228902,0.06,178.67,178.66,265.36760641]
[1752835230418,0.06,178.67,178.66,259.77038264]
[1752835230707,0.06,178.67,178.66,51.04468397]
[1752835230889,0.06,178.67,178.66,87.37038264]
[1752835231089,0.06,178.67,178.66,113.37038264]
[1752835231901,0.06,178.67,178.66,112.65038264]
[1752835232108,0.06,178.67,178.66,104.96468397]
[1752835232288,0.06,178.67,178.66,112.65038264]
[1752835234713,0.06,178.67,178.66,113.37038264]
[1752835237121,0.06,178.71,178.7,84.01038264]
[1752835237325,0.06,178.71,178.7,120.31608131]
[1752835237501,0.06,178.71,178.7,113.35038264]
[1752835238411,0.06,178.71,178.7,112.65038264]
[1752835238595,0.06,178.71,178.7,113.37038264]
[1752835239023,0.06,178.71,178.7,117.97847226]
[1752835241511,0.06,178.71,178.7,117.25847226]
[1752835241728,0.06,178.71,178.7,117.97847226]
[1752835243922,0.06,178.71,178.7,123.57444316]
[1752835245122,0.06,178.71,178.7,130.73004316]
[1752835245327,0.06,178.71,178.7,271.54004316]
[1752835247306,0.06,178.71,178.7,242.90004316]
[1752835247525,0.06,178.71,178.7,271.52004316]
[1752835248727,0.06,178.71,178.7,237.30407226]
[1752835248933,0.06,178.71,178.7,125.16004316]
[1752835250013,0.06,178.71,178.7,119.56407226]
[1752835250220,0.06,178.71,178.7,117.99847226]
[1752835250714,0.06,178.71,178.7,117.27847226]
[1752835251115,0.06,178.71,178.7,123.59444316]
[1752835253435,0.06,178.71,178.7,84.45847226]
[1752835253637,0.06,178.71,178.7,83.73847226]
[1752835254852,0.06,178.71,178.7,118.53806935]
[1752835255031,0.06,178.71,178.7,117.97847226]
[1752835256031,0.06,178.71,178.7,123.57444316]
[1752835258553,0.06,178.71,178.7,117.97847226]
[1752835258922,0.06,178.71,178.7,104.98468397]
[1752835259126,13.03378829,178.71,178.7,33.54]
[1752835259430,18.62944605,178.71,178.66,33.54]
[1752835259632,0.68,178.7,178.67,54.66]
[1752835259849,5.65565776,178.71,178.68,62.61847226]
[1752835259850,0.06,178.71,178.68,62.61847226]
[1752835260149,0.06,178.71,178.69,28.66]
[1752835260532,0.68,178.7,178.69,45.44468397]
[1752835260851,12.97378829,178.7,178.68,28.68]
[1752835261028,0.68,178.69,178.68,28.68]
[1752835261228,6.27628406,178.69,178.68,28.68]
[1752835261427,13.96516937,178.69,178.64,33.54]
[1752835261640,7.68888531,178.65,178.63,0.03]
[1752835261840,7.68888531,178.65,178.63,28.73]
[1752835262049,0.68,178.64,178.63,28.73]
[1752835262628,7.68888531,178.66,178.63,28.73]
[1752835262947,0.68,178.65,178.63,28.73]
[1752835263139,12.30788044,178.66,178.63,28.73]
[1752835263352,12.98788044,178.66,178.63,28.73]
[1752835263540,0.68,178.66,178.63,28.73]
[1752835264149,6.4696,178.68,178.64,16.78468397]
[1752835264346,0.68,178.7,178.66,12.30788044]
[1752835265466,17.9635948,178.71,178.66,13.00788044]
[1752835265751,18.6435948,178.71,178.67,45.48468397]
[1752835265950,0.68,178.7,178.67,45.48468397]
[1752835266755,6.27602833,178.7,178.67,45.48468397]
[1752835267663,6.27602833,178.7,178.67,57.79256441]
[1752835268933,5.59602833,178.7,178.67,57.79256441]
[1752835269144,0.06,178.71,178.69,29.09256441]
[1752835269341,0.06,178.71,178.69,57.77256441]
[1752835269739,0.06,178.71,178.7,29.09256441]
[1752835270363,0.06,178.71,178.7,29.79256441]
[1752835271436,0.06,178.71,178.7,29.09256441]
[1752835273744,0.06,178.71,178.7,16.78468397]
[1752835274747,0.06,178.71,178.7,29.09256441]
[1752835275362,0.06,178.71,178.7,62.63256441]
[1752835276269,0.06,178.71,178.7,91.29256441]
[1752835276837,0.06,178.71,178.7,91.99256441]
[1752835277262,0.06,178.71,178.7,78.98468397]
[1752835277557,0.74,178.71,178.7,78.96468397]
[1752835277948,0.06,178.71,178.7,78.96468397]
[1752835279865,0.06,178.71,178.7,91.27256441]
[1752835282975,0.06,178.71,178.7,86.64947795]
[1752835283358,0.06,178.71,178.7,113.34947795]
[1752835284950,0.06,178.71,178.7,118.94544885]
[1752835285366,0.06,178.71,178.7,92.94544885]
[1752835286751,0.06,178.75,178.74,76.32468397]
[1752835286952,0.06,178.75,178.74,112.62947795]
[1752835287273,0.06,178.75,178.74,113.34947795]
[1752835287479,0.06,178.75,178.74,112.62947795]
[1752835288650,0.06,178.75,178.74,84.00947795]
[1752835288872,0.73,178.75,178.74,28.62]
[1752835289074,0.73,178.75,178.73,45.40468397]
[1752835289254,0.06,178.75,178.73,28.62]
[1752835289878,0.73,178.75,178.73,28.62]
[1752835290150,0.73,178.75,178.72,54.62]
[1752835290375,0.67,178.74,178.72,54.62]
[1752835290575,0.67,178.73,178.71,28.62]
[1752835290881,6.26521039,178.73,178.71,28.62]
[1752835291082,6.26521039,178.73,178.7,54.62]
[1752835291584,5.59521039,178.73,178.7,62.30479398]
[1752835292380,5.59521039,178.73,178.7,28.62]
[1752835292580,0.67,178.72,178.68,7.68479398]
[1752835292885,5.59565776,178.71,178.69,28.6]
[1752835293885,0.67,178.7,178.68,45.40468397]
[1752835294265,5.59565776,178.71,178.68,45.40468397]
[1752835294479,6.26565776,178.71,178.68,45.40468397]
[1752835297183,5.59565776,178.71,178.68,45.40468397]
[1752835297763,5.59565776,178.71,178.68,46.12468397]
[1752835298289,5.59565776,178.71,178.68,45.40468397]
[1752835299293,5.59565776,178.71,178.68,46.12468397]
[1752835299669,5.59565776,178.71,178.69,0.72]
[1752835299874,5.59565776,178.71,178.7,28.58]
[1752835300080,5.59565776,178.71,178.7,29.3]
[1752835300482,5.59565776,178.71,178.7,28.58]
[1752835300695,6.26565776,178.71,178.7,28.58]
[1752835300866,6.26565776,178.71,178.69,28.58]
[1752835302198,5.59565776,178.71,178.69,28.58]
[1752835303303,8.35479398,178.7,178.66,42.78468397]
[1752835303470,7.68479398,178.69,178.67,28.58]
[1752835303670,8.35479398,178.69,178.66,71.36468397]
[1752835304073,7.68479398,178.7,178.66,71.36468397]
[1752835304272,8.35479398,178.7,178.66,71.36468397]
[1752835304468,8.35479398,178.7,178.66,72.08468397]
[1752835304668,7.68479398,178.7,178.66,72.08468397]
[1752835305402,5.59628406,178.69,178.66,72.08468397]
[1752835305590,5.59628406,178.69,178.67,33.54]
[1752835305791,13.28107804,178.69,178.66,54.58]
[1752835305995,8.35479398,178.68,178.66,28.58]
[1752835306286,8.35479398,178.68,178.65,28.58]
[1752835306697,8.35479398,178.67,178.63,16.81468397]
[1752835306894,8.35479398,178.67,178.63,45.39468397]
[1752835307188,8.35479398,178.67,178.63,46.11468397]
[1752835307370,13.28201775,178.66,178.63,28.61]
[1752835307571,7.68479398,178.65,178.63,28.61]
[1752835308102,7.68479398,178.65,178.63,0.03]
[1752835308601,8.35479398,178.64,178.63,0.03]
[1752835309092,7.68479398,178.64,178.63,0.03]
[1752835309397,13.9526444,178.64,178.63,0.03]
[1752835310174,13.2826444,178.64,178.63,0.03]
[1752835310674,5.59785042,178.64,178.63,0.03]
[1752835310872,5.59785042,178.64,178.63,0.75]
[1752835311074,5.5969105,178.67,178.64,16.78468397]
[1752835311288,5.59628406,178.69,178.65,36.26479398]
[1752835311596,5.59628406,178.69,178.65,29.3]
[1752835311803,13.28107804,178.69,178.65,29.3]
[1752835312175,7.68479398,178.68,178.65,28.58]
[1752835313393,5.5969105,178.67,178.65,28.58]
[1752835314111,5.5969105,178.67,178.65,29.28]
[1752835314597,5.5969105,178.67,178.66,0.7]
[1752835314783,5.5959709,178.7,178.66,25.16947795]
[1752835314998,5.5959709,178.7,178.67,36.96479398]
[1752835315306,5.5959709,178.7,178.67,29.28]
[1752835315609,5.59565776,178.71,178.68,33.54]
[1752835315913,5.59565776,178.71,178.68,41.92479398]
[1752835316120,5.59565776,178.71,178.69,0.7]
[1752835317008,5.59565776,178.71,178.68,33.54]
[1752835317219,5.59565776,178.71,178.69,0.7]
[1752835317510,5.59534467,178.72,178.69,0.7]
[1752835317711,5.59534467,178.72,178.7,8.38479398]
[1752835317887,0.06,178.73,178.71,53.74947795]
[1752835318085,0.06,178.73,178.72,7.68479398]
[1752835318288,0.06,178.73,178.72,8.38479398]
[1752835319009,0.06,178.73,178.72,25.16947795]
[1752835319211,0.06,178.73,178.72,58.70947795]
[1752835320509,0.06,178.73,178.72,25.16947795]
[1752835320687,0.06,178.73,178.72,25.72901241]
[1752835322693,0.06,178.73,178.72,64.86435708]
[1752835326013,0.06,178.73,178.72,211.26435708]
[1752835326221,0.06,178.73,178.72,210.70482262]
[1752835329600,0.06,178.73,178.72,239.24482262]
[1752835330923,0.06,178.73,178.72,163.18468397]
[1752835331107,0.06,178.73,178.72,199.40947795]
[1752835331302,0.06,178.73,178.72,170.86947795]
[1752835331520,0.06,178.73,178.72,225.40947795]
[1752835331722,0.06,178.73,178.72,217.72468397]
[1752835331907,0.06,178.73,178.72,79.00947795]
[1752835332105,0.06,178.73,178.72,16.78468397]
[1752835332303,0.06,178.73,178.69,35.7589284]
[1752835332304,0.73,178.73,178.69,28.56]
[1752835332518,0.06,178.73,178.71,7.68479398]
[1752835332720,0.06,178.73,178.72,16.78468397]
[1752835332921,0.06,178.73,178.72,25.16947795]
[1752835333124,5.65503161,178.73,178.72,16.78468397]
[1752835334625,0.06,178.73,178.72,16.78468397]
[1752835335437,0.06,178.73,178.72,50.32468397]
[1752835337503,0.06,178.73,178.72,78.86468397]
[1752835338310,0.06,178.73,178.72,79.56468397]
[1752835338940,0.06,178.73,178.72,87.24947795]
[1752835339314,0.06,178.73,178.72,78.86468397]
[1752835339738,0.06,178.73,178.72,87.24947795]
[1752835339921,0.06,178.73,178.72,78.86468397]
[1752835340434,0.06,178.73,178.72,87.24947795]
[1752835341231,0.06,178.73,178.72,86.54947795]
[1752835341539,0.06,178.73,178.72,78.86468397]
[1752835342111,0.06,178.73,178.72,86.54947795]
[1752835342522,0.06,178.73,178.72,58.00947795]
[1752835342735,0.06,178.73,178.72,86.54947795]
[1752835343034,0.06,178.73,178.72,58.70947795]
[1752835343240,0.06,178.73,178.72,87.24947795]
[1752835343441,0.06,178.73,178.72,86.54947795]
[1752835343636,0.06,178.73,178.72,78.86468397]
[1752835344136,0.06,178.73,178.72,50.32468397]
[1752835344643,0.78,178.73,178.71,28.54]
[1752835345141,8.40479398,178.72,178.69,33.54]
[1752835345342,7.68479398,178.72,178.69,62.08]
[1752835345544,0.72,178.71,178.69,62.08]
[1752835345744,5.5959709,178.7,178.69,33.54]
[1752835351033,5.59565776,178.71,178.69,33.54]
[1752835352140,21.73270688,178.73,178.69,33.54]
[1752835352323,22.45270688,178.73,178.69,33.54]
[1752835352647,0.72,178.72,178.69,33.54]
[1752835353349,8.40479398,178.72,178.69,33.54]
[1752835353642,8.40479398,178.71,178.69,33.54]
[1752835354028,5.5959709,178.7,178.69,33.54]
[1752835355626,0.06,178.73,178.69,41.90479398]
[1752835355828,0.06,178.73,178.7,28.52]
[1752835356131,0.06,178.73,178.71,58.00947795]
[1752835356338,0.06,178.73,178.72,86.52947795]
[1752835356521,0.06,178.73,178.72,87.20947795]
[1752835356942,0.06,178.73,178.72,78.84468397]
[1752835357144,0.06,178.73,178.72,86.52947795]
[1752835357351,0.06,178.73,178.72,87.20947795]
[1752835357664,0.06,178.73,178.72,87.76901241]
[1752835358839,0.06,178.73,178.72,93.36435708]
[1752835360736,0.06,178.73,178.72,87.76901241]
[1752835361350,0.06,178.73,178.72,79.52468397]
[1752835361556,0.06,178.73,178.72,87.20947795]
[1752835364252,0.06,178.73,178.71,33.68479398]
[1752835364565,0.06,178.73,178.72,28.52]
[1752835367736,0.06,178.73,178.72,36.20479398]
[1752835367940,0.06,178.73,178.72,53.66947795]
[1752835370465,0.06,178.73,178.72,87.20947795]
[1752835372547,0.06,178.73,178.72,92.80482262]
[1752835374265,0.06,178.73,178.72,93.36435708]
[1752835376550,0.06,178.75,178.74,50.32468397]
[1752835376749,0.06,178.77,178.74,233.4889498]
[1752835376956,0.06,178.78,178.74,233.4889498]
[1752835376957,0.06,178.78,178.77,16.78468397]
[1752835377167,0.06,178.79,178.77,89.95275471]
[1752835377354,0.06,178.79,178.78,58.66947795]
[1752835377550,0.06,178.79,178.78,59.22882463]
[1752835377970,0.06,178.79,178.78,64.82229146]
[1752835378655,0.06,178.79,178.78,57.13749748]
[1752835378863,0.06,178.79,178.78,64.82229146]
[1752835379372,0.06,178.79,178.78,97.70444383]
[1752835380573,0.06,178.79,178.78,69.18444383]
[1752835380864,0.06,178.79,178.78,97.70444383]
[1752835382075,0.06,178.79,178.78,244.10444383]
[1752835382369,0.06,178.79,178.78,243.54509715]
[1752835383361,0.06,178.79,178.78,210.66294478]
[1752835383570,0.06,178.79,178.78,204.40947795]
[1752835383773,0.06,178.79,178.78,232.92947795]
[1752835384466,0.06,178.79,178.78,233.58947795]
[1752835384665,0.06,178.79,178.78,239.18294478]
[1752835387778,0.06,178.79,178.78,204.40947795]
[1752835387960,0.06,178.79,178.78,86.50947795]
[1752835388483,0.06,178.79,178.78,87.16947795]
[1752835389466,0.06,178.79,178.78,92.76294478]
[1752835389871,0.06,178.79,178.78,92.79294478]
[1752835391764,0.06,178.79,178.78,246.87773876]
[1752835391970,0.06,178.82,178.8,50.32468397]
[1752835392176,0.06,178.82,178.8,94.75355604]
[1752835392385,0.06,178.82,178.8,95.41355604]
[1752835393865,0.06,178.82,178.8,101.0063972]
[1752835394066,0.06,178.82,178.8,93.32160322]
[1752835395976,0.06,178.82,178.8,101.0063972]
[1752835398888,0.06,178.82,178.8,87.06876206]
[1752835399592,0.06,178.82,178.8,87.72876206]
[1752835399891,0.06,178.82,178.8,80.04396808]
[1752835400075,0.06,178.82,178.8,87.72876206]
[1752835400775,0.06,178.82,178.8,87.06876206]
[1752835401205,0.06,178.82,178.8,84.56876206]
[1752835401378,0.74,178.81,178.8,113.06876206]
[1752835401903,0.06,178.81,178.8,113.06876206]
[1752835403083,0.06,178.81,178.8,112.50947795]
[1752835409224,0.76,178.81,178.78,0.03]
[1752835409513,0.7,178.8,178.79,45.28468397]
[1752835409709,0.7,178.8,178.79,71.28468397]
[1752835410498,0.7,178.8,178.79,78.82468397]
[1752835410688,6.29284116,178.8,178.79,78.82468397]
[1752835411980,6.29284116,178.8,178.79,62.07]
[1752835413605,5.59284116,178.8,178.79,62.07]
[1752835413785,5.65258991,178.81,178.79,62.07]
[1752835413983,5.65258991,178.81,178.79,69.75479398]
[1752835414206,0.06,178.81,178.8,58.67947795]
[1752835414422,0.06,178.81,178.8,58.00947795]
[1752835414583,6.35252838,178.81,178.8,33.54]
[1752835414901,6.35252838,178.81,178.79,28.53]
[1752835415085,0.7,178.8,178.79,54.53]
[1752835415285,5.65252838,178.81,178.79,54.53]
[1752835415485,6.35252838,178.81,178.79,54.53]
[1752835416791,6.35252838,178.81,178.79,96.42479398]
[1752835416792,0.06,178.81,178.79,96.42479398]
[1752835417412,0.06,178.81,178.79,95.75479398]
[1752835418002,0.06,178.81,178.8,58.67947795]
[1752835419016,0.06,178.81,178.8,59.23876206]
[1752835422100,0.06,178.81,178.8,58.00947795]
[1752835422303,8.44479398,178.81,178.79,26.03]
[1752835422597,8.38479398,178.8,178.79,0.03]
[1752835423791,6.29284116,178.8,178.79,0.03]
[1752835424716,13.97763514,178.8,178.79,0.03]
[1752835428318,5.65268543,178.81,178.79,0.03]
[1752835428922,13.33747941,178.81,178.79,0.03]
[1752835429100,0.7,178.8,178.79,0.03]
[1752835429500,13.33747941,178.81,178.79,0.03]
[1752835429918,14.03747941,178.81,178.79,0.03]
[1752835432217,0.06,178.81,178.79,0.7]
[1752835432437,0.06,178.81,178.79,0.03]
[1752835432721,0.7,178.8,178.79,0.03]
[1752835433735,7.74479398,178.81,178.79,0.03]
[1752835433907,0.72,178.81,178.79,0.03]
[1752835434104,0.06,178.81,178.79,0.03]
[1752835434410,0.66,178.8,178.79,0.03]
[1752835435735,7.74479398,178.81,178.79,0.03]
[1752835435921,0.06,178.81,178.79,0.03]
[1752835436419,0.72,178.81,178.79,0.03]
[1752835437733,0.06,178.81,178.8,8.34479398]
[1752835438040,0.06,178.81,178.8,0.66]
[1752835439023,0.06,178.81,178.8,54.32876206]
[1752835439616,0.06,178.81,178.8,93.46160322]
[1752835442337,0.06,178.81,178.8,80.18396808]
[1752835442538,0.06,178.81,178.8,86.64947795]
[1752835442725,0.06,178.81,178.8,87.20876206]
[1752835443241,0.06,178.81,178.8,87.86876206]
[1752835443438,0.06,178.81,178.8,93.46160322]
[1752835444538,0.06,178.81,178.8,58.56876206]
[1752835444741,0.06,178.81,178.8,87.18876206]
[1752835445047,0.06,178.81,178.8,95.53355604]
[1752835445347,0.06,178.81,178.8,101.1263972]
[1752835447225,0.06,178.81,178.8,93.44160322]
[1752835447436,0.06,178.81,178.8,101.1263972]
[1752835448843,0.06,178.81,178.8,87.18876206]
[1752835449027,0.06,178.81,178.8,79.50396808]
[1752835449221,0.06,178.81,178.8,87.18876206]
[1752835449422,0.06,178.81,178.8,87.84876206]
[1752835450025,0.06,178.81,178.8,93.44160322]
[1752835451328,0.06,178.81,178.8,85.75680924]
[1752835451528,0.06,178.81,178.8,93.44160322]
[1752835456950,0.06,178.81,178.8,85.75680924]
[1752835457148,0.06,178.81,178.8,93.44160322]
[1752835459338,0.06,178.81,178.8,79.46396808]
[1752835459647,0.06,178.81,178.8,86.58947795]
[1752835459854,0.06,178.81,178.8,112.58947795]
[1752835460243,0.72,178.81,178.8,78.90468397]
[1752835460558,0.72,178.81,178.79,0.03]
[1752835460559,8.40479398,178.81,178.79,0.03]
[1752835460933,0.66,178.8,178.79,0.03]
[1752835463562,6.25284116,178.8,178.79,0.03]
[1752835464755,13.93763514,178.8,178.79,0.03]
[1752835468472,5.59284116,178.8,178.79,0.03]
[1752835468778,5.65259304,178.81,178.79,0.03]
[1752835469152,0.06,178.81,178.79,8.41479398]
[1752835469762,0.06,178.81,178.8,79.92947795]
[1752835471156,0.06,178.81,178.8,26.0]
[1752835471467,0.06,178.81,178.8,54.74]
[1752835472247,0.06,178.81,178.8,79.20947795]
[1752835472958,0.06,178.81,178.8,54.74]
[1752835473288,0.06,178.81,178.79,0.03]
[1752835473289,8.42479398,178.81,178.79,0.03]
[1752835473578,8.36479398,178.8,178.79,0.03]
[1752835475366,13.95763514,178.8,178.79,0.03]
[1752835475864,13.27763514,178.8,178.79,0.03]
[1752835476367,5.59284116,178.8,178.79,0.03]
[1752835476597,13.27763514,178.8,178.79,0.03]
[1752835477056,13.95763514,178.8,178.79,0.03]
[1752835483559,13.27763514,178.8,178.79,0.03]
[1752835483976,5.59284116,178.8,178.79,0.03]
[1752835484673,5.6526267,178.81,178.79,0.03]
[1752835484985,5.6526267,178.81,178.79,0.73]
[1752835485479,0.06,178.81,178.8,0.7]
[1752835486177,0.06,178.81,178.8,8.38479398]
[1752835486381,0.06,178.81,178.8,64.85160322]
[1752835486676,0.06,178.81,178.8,85.25876206]
[1752835487069,0.06,178.81,178.8,90.85160322]
[1752835490178,0.06,178.81,178.8,84.69947795]
[1752835490483,0.06,178.81,178.8,112.65947795]
[1752835492299,0.06,178.81,178.8,113.35947795]
[1752835494786,0.06,178.81,178.8,119.51160322]
[1752835495070,0.06,178.81,178.8,118.95231911]
[1752835496672,0.06,178.81,178.8,111.26752513]
[1752835496874,0.06,178.81,178.8,118.95231911]
[1752835497700,0.06,178.81,178.8,112.65947795]
[1752835498292,0.06,178.81,178.8,113.34947795]
[1752835499185,0.06,178.81,178.8,118.94231911]
[1752835499494,0.06,178.81,178.8,113.34947795]
[1752835501380,0.06,178.81,178.8,112.65947795]
[1752835501578,0.74,178.81,178.8,59.53]
[1752835502307,0.06,178.81,178.8,59.53]
[1752835502804,0.06,178.81,178.79,0.03]
[1752835502805,8.42479398,178.81,178.79,0.03]
[1752835503098,8.36479398,178.8,178.79,0.03]
[1752835503298,13.95763514,178.8,178.79,0.03]
[1752835504388,21.64242912,178.8,178.79,1e-08]
[1752835504704,7.604,178.79,178.74,0.03]
[1752835504882,7.68479398,178.75,178.71,0.03]
[1752835505082,7.68479398,178.72,178.71,0.03]
[1752835505404,13.28013865,178.72,178.71,0.03]
[1752835505617,13.96013865,178.72,178.71,0.03]
[1752835508202,6.27534467,178.72,178.71,0.03]
[1752835508389,13.96013865,178.72,178.71,0.03]
[1752835515597,13.96013865,178.72,178.69,0.03]
[1752835515799,13.96013865,178.72,178.65,73.84692865]
[1752835515800,15.36958796,178.7,178.65,73.84692865]
[1752835515993,7.68479398,178.66,178.65,73.84692865]
[1752835516389,7.68479398,178.67,178.65,73.84692865]
[1752835516794,7.68479398,178.66,178.65,73.84692865]
[1752835517002,0.68,178.69,178.65,73.84692865]
[1752835517182,5.59722377,178.66,178.65,73.84692865]
[1752835517387,13.28201775,178.66,178.65,73.84692865]
[1752835518511,13.28173535,178.67,178.65,73.84692865]
[1752835519098,13.28173535,178.67,178.65,74.53692865]
[1752835519290,13.28173535,178.67,178.65,73.84692865]
[1752835519496,7.68479398,178.66,178.65,73.84692865]
[1752835520113,13.28173535,178.67,178.65,73.84692865]
[1752835520312,13.28173535,178.67,178.65,74.53692865]
[1752835520895,7.68479398,178.66,178.65,74.53692865]
[1752835521597,13.28201775,178.66,178.65,74.53692865]
[1752835522001,5.59722377,178.66,178.65,74.53692865]
[1752835522198,13.28201775,178.66,178.65,73.84692865]
[1752835522507,13.96201775,178.66,178.65,0.03]
[1752835524921,13.28201775,178.66,178.65,0.03]
[1752835526894,5.59722377,178.66,178.65,0.03]
[1752835527089,13.28201775,178.66,178.65,0.03]
[1752835528704,13.95201775,178.66,178.65,0.03]
[1752835529100,13.28201775,178.66,178.65,0.03]
[1752835531398,5.59722377,178.66,178.65,0.03]